bitfinex/quotes_SOLUSD_20241223
["timestamp","ask_amount","ask_price","bid_price","bid_amount"]
[1734950296725,20.0,184.39,184.27,0.81354824]
[1734950296726,20.0,184.39,184.28,12.7353699]
[1734950296964,6.0755,184.34,184.28,12.7353699]
[1734950297176,7.5173,184.34,184.26,12.7353699]
[1734950297838,7.5173,184.34,184.24,12.7353699]
[1734950298061,8.42611958,184.34,184.24,12.7353699]
[1734950298470,20.0,184.31,184.24,12.7353699]
[1734950299166,20.0,184.31,184.22,12.7353699]
[1734950299633,20.0,184.31,184.24,12.7353699]
[1734950302252,7.5173,184.34,184.26,12.7353699]
[1734950302455,7.5173,184.34,184.27,12.7353699]
[1734950302757,7.5173,184.34,184.28,12.7353699]
[1734950303055,6.0755,184.34,184.31,12.7353699]
[1734950303728,6.0755,184.34,184.3,12.7353699]
[1734950306054,6.1153,184.38,184.3,12.7353699]
[1734950307455,6.1153,184.38,184.28,12.7353699]
[1734950310758,6.1153,184.38,184.3,12.7353699]
[1734950313754,6.1153,184.38,184.34,12.7353699]
[1734950313936,6.1153,184.38,184.35,12.7353699]
[1734950314135,6.1153,184.38,184.33,13.54869768]
[1734950315953,6.1153,184.38,184.33,12.7353699]
[1734950316157,6.1153,184.38,184.31,12.7353699]
[1734950316858,6.1153,184.38,184.31,13.54884791]
[1734950317863,6.1153,184.38,184.33,12.7353699]
[1734950318757,6.5337,184.42,184.35,12.7353699]
[1734950318957,6.5337,184.42,184.33,149.4353699]
[1734950319559,20.0,184.39,184.29,12.7353699]
[1734950324263,32.71576308,184.38,184.28,12.7353699]
[1734950324463,23.776884,184.34,184.24,12.7353699]
[1734950325763,20.0,184.35,184.25,0.81379218]
[1734950326070,20.0,184.35,184.26,12.7353699]
[1734950331581,6.3825,184.33,184.24,12.7353699]
[1734950331879,0.90895517,184.32,184.24,12.7353699]
[1734950332262,20.0,184.3,184.24,8.15238766]
[1734950332467,20.0,184.3,184.21,0.81372744]
[1734950332468,20.0,184.3,184.22,8.15238766]
[1734950333882,1.4418,184.31,184.22,8.15238766]
[1734950334087,20.0,184.3,184.22,8.15238766]
[1734950334282,20.0,184.3,184.24,8.15238766]
[1734950335076,20.0,184.3,184.23,8.15238766]
[1734950337379,20.0,184.3,184.2,0.81387203]
[1734950337581,0.90901325,184.29,184.2,8.15238766]
[1734950337779,30.229084,184.28,184.14,151.9416]
[1734950337975,30.229084,184.28,184.19,8.15238766]
[1734950338569,0.90919268,184.27,184.19,8.15238766]
[1734950338780,30.229084,184.28,184.19,8.15238766]
[1734950339264,23.776884,184.26,184.18,20.0]
[1734950339470,23.776884,184.26,184.19,8.15238766]
[1734950339769,6.4522,184.28,184.2,8.15238766]
[1734950340171,23.776884,184.27,184.2,8.15238766]
[1734950340486,24.68610127,184.27,184.2,8.15238766]
[1734950340673,29.857984,184.23,184.12,0.6821571]
[1734950340877,23.776884,184.21,184.14,8.15238766]
[1734950341183,23.776884,184.21,184.12,0.6821571]
[1734950341184,1.4418,184.2,184.12,0.6821571]
[1734950341486,1.4418,184.2,184.13,8.15238766]
[1734950343398,1.4418,184.2,184.12,1.49650998]
[1734950343600,1.4418,184.2,184.12,0.6821571]
[1734950345081,1.4418,184.2,184.15,12.75515346]
[1734950345267,6.0811,184.23,184.18,12.75515346]
[1734950345462,6.0811,184.23,184.18,13.56923169]
[1734950345985,6.0811,184.23,184.18,0.81407823]
[1734950346390,6.0811,184.23,184.14,12.75515346]
[1734950347190,6.0811,184.23,184.16,12.75515346]
[1734950349387,1.4418,184.25,184.18,12.75515346]
[1734950349695,6.3589,184.27,184.18,12.75515346]
[1734950350767,6.3589,184.27,184.16,13.56920653]
[1734950353996,6.3589,184.27,184.18,12.75515346]
[1734950354305,6.3589,184.27,184.2,12.75515346]
[1734950354519,6.3589,184.27,184.21,0.81385213]
[1734950354986,6.3589,184.27,184.22,12.75515346]
[1734950355193,6.3589,184.27,184.2,136.7]
[1734950355398,6.3589,184.27,184.16,12.75515346]
[1734950357112,6.3589,184.27,184.17,0.81408597]
[1734950357312,6.3589,184.27,184.18,12.75515346]
[1734950357621,6.3589,184.27,184.2,12.75515346]
[1734950357784,6.3589,184.27,184.21,0.81384692]
[1734950360007,1.4418,184.29,184.22,32.75515346]
[1734950360208,1.4418,184.29,184.23,0.81379367]
[1734950360414,6.0148,184.31,184.23,0.81379367]
[1734950360913,6.0148,184.31,184.23,13.56894713]
[1734950361089,6.0148,184.31,184.24,32.75515346]
[1734950361289,6.0148,184.31,184.25,0.81368843]
[1734950363809,6.0148,184.31,184.26,12.75515346]
[1734950364019,1.4418,184.33,184.27,13.56875038]
[1734950364518,1.4418,184.33,184.27,0.81359692]
[1734950365022,1.4418,184.33,184.24,156.1633811]
[1734950365392,1.4418,184.33,184.25,13.56892134]
[1734950365897,1.4418,184.33,184.26,12.88064346]
[1734950366088,6.3494,184.35,184.28,12.75515346]
[1734950366290,6.3494,184.35,184.29,0.81355725]
[1734950366593,6.3005,184.4,184.29,13.56871071]
[1734950367005,6.3005,184.4,184.29,0.81355725]
[1734950368715,6.3005,184.4,184.29,13.56871071]
[1734950369104,6.3005,184.4,184.3,12.75515346]
[1734950369305,6.3005,184.4,184.31,0.81348281]
[1734950371518,24.68529732,184.39,184.29,20.0]
[1734950371898,23.776884,184.39,184.29,20.0]
[1734950372092,23.776884,184.39,184.29,20.81355594]
[1734950374804,20.0,184.36,184.29,0.81355594]
[1734950374999,20.0,184.36,184.27,0.81358266]
[1734950375222,7.4691,184.35,184.26,136.7]
[1734950375434,8.37787719,184.35,184.26,136.7]
[1734950375730,7.4691,184.35,184.26,136.7]
[1734950378001,7.4691,184.35,184.25,8.14923832]
[1734950378206,7.4691,184.35,184.25,8.96295559]
[1734950379428,7.4691,184.35,184.27,144.84923832]
[1734950379734,7.4691,184.35,184.29,8.14923832]
[1734950381733,6.0273,184.35,184.3,8.14923832]
[1734950381915,6.0273,184.35,184.3,8.96276162]
[1734950383935,6.0273,184.35,184.3,0.8135233]
[1734950385542,6.0273,184.35,184.27,136.7]
[1734950385720,6.0273,184.35,184.27,144.84923832]
[1734950385909,6.0273,184.35,184.28,8.96281605]
[1734950386528,6.0273,184.35,184.3,8.14923832]
[1734950386718,6.0273,184.35,184.31,0.8134502]
[1734950387612,1.4418,184.39,184.31,8.96268852]
[1734950387911,1.4418,184.39,184.33,8.14923832]
[1734950388241,1.4418,184.39,184.33,8.96261271]
[1734950388412,6.6335,184.4,184.34,8.14923832]
[1734950388610,6.6335,184.4,184.35,0.81327827]
[1734950388839,6.6335,184.4,184.35,8.96251659]
[1734950390035,1.4418,184.48,184.39,8.14923832]
[1734950390208,6.2925,184.5,184.43,8.14923832]
[1734950390409,6.2925,184.5,184.44,8.96217292]
[1734950390638,6.2925,184.5,184.44,0.8129346]
[1734950390941,0.90777423,184.49,184.33,144.84923832]
[1734950391110,7.4774,184.48,184.33,144.84923832]
[1734950391311,0.90829095,184.47,184.33,144.84923832]
[1734950391511,20.0,184.45,184.33,136.7]
[1734950391729,20.0,184.43,184.32,144.84923832]
[1734950392011,6.0356,184.41,184.29,150.2654]
[1734950392240,6.0356,184.41,184.3,8.14923832]
[1734950393535,6.0356,184.41,184.3,8.96270465]
[1734950398050,1.4418,184.4,184.3,8.96270465]
[1734950399348,20.0,184.38,184.3,0.81346633]
[1734950399567,20.0,184.38,184.3,8.96270465]
[1734950399920,20.0,184.38,184.3,8.14923832]
[1734950400868,20.0,184.38,184.29,136.7]
[1734950401035,20.0,184.38,184.29,144.84923832]
[1734950402052,20.0,184.38,184.29,8.14923832]
[1734950403263,20.0,184.38,184.3,8.14923832]
[1734950403473,20.0,184.38,184.28,23.902374]
[1734950403474,20.0,184.38,184.31,8.14923832]
[1734950404345,1.4418,184.4,184.31,8.14923832]
[1734950404546,6.0356,184.41,184.35,8.14923832]
[1734950404744,6.0356,184.41,184.38,8.14923832]
[1734950405059,7.4735,184.45,184.38,8.96240672]
[1734950405458,7.4735,184.45,184.38,0.8131684]
[1734950405641,0.90843583,184.49,184.41,20.0]
[1734950405982,6.0317,184.54,184.46,8.14923832]
[1734950406275,6.0317,184.54,184.48,8.14923832]
[1734950406446,6.0317,184.54,184.49,8.96197741]
[1734950407271,6.0317,184.54,184.49,0.81273909]
[1734950408172,23.776884,184.6,184.49,0.81273909]
[1734950408393,23.776884,184.6,184.5,13.5152682]
[1734950408585,6.3769,184.61,184.53,12.70258082]
[1734950408769,7.39259179,184.61,184.5,20.81268738]
[1734950409070,6.3769,184.61,184.51,12.70258082]
[1734950409250,6.3769,184.61,184.52,13.51515633]
[1734950409570,6.3769,184.61,184.53,12.70258082]
[1734950409777,6.3769,184.61,184.54,0.81251034]
[1734950409979,6.3769,184.61,184.54,13.51509116]
[1734950410662,6.3769,184.61,184.54,0.81251034]
[1734950410857,6.3769,184.61,184.52,12.70258082]
[1734950411080,6.3769,184.61,184.53,13.51507786]
[1734950412394,6.3769,184.61,184.54,12.70258082]
[1734950412580,6.3769,184.61,184.56,12.70258082]
[1734950412790,15.1561196,184.65,184.58,12.70258082]
[1734950413103,15.1561196,184.65,184.59,0.81221101]
[1734950413678,6.4019,184.66,184.59,0.81221101]
[1734950413866,6.4019,184.66,184.59,13.51479183]
[1734950414061,6.4019,184.66,184.61,12.70258082]
[1734950414381,6.4019,184.66,184.58,20.0]
[1734950414382,6.5582,184.72,184.62,13.51470319]
[1734950414960,6.5582,184.72,184.62,0.81212237]
[1734950415176,6.5582,184.72,184.61,0.81213453]
[1734950415785,6.5582,184.72,184.61,13.51471535]
[1734950415987,6.5582,184.72,184.62,12.70258082]
[1734950416282,6.5582,184.72,184.63,0.81208821]
[1734950416455,24.79203099,184.71,184.59,13.51469841]
[1734950416658,6.5582,184.72,184.6,0.12549]
[1734950416884,6.5582,184.72,184.62,12.70258082]
[1734950417084,6.5582,184.72,184.63,0.81205099]
[1734950417256,6.5582,184.72,184.63,13.51463181]
[1734950417465,6.5582,184.72,184.65,12.70258082]
[1734950417662,6.5582,184.72,184.66,0.81187287]
[1734950420189,0.6821571,184.76,184.67,36.60495482]
[1734950420384,0.6821571,184.76,184.68,0.81175858]
[1734950420689,0.6821571,184.76,184.68,13.5143394]
[1734950421068,0.6821571,184.76,184.69,12.70258082]
[1734950421269,0.6821571,184.76,184.7,0.81170951]
[1734950422090,0.6821571,184.76,184.74,12.70258082]
[1734950422293,0.6821571,184.76,184.74,13.51411356]
[1734950422487,0.6821571,184.76,184.75,12.70258082]
[1734950423076,0.6821571,184.76,184.75,173.30495482]
[1734950423481,0.6821571,184.76,184.75,204.91845482]
[1734950425105,0.6821571,184.76,184.75,181.01608082]
[1734950425274,0.6821571,184.76,184.75,151.01608082]
[1734950425468,0.6821571,184.76,184.75,174.91845482]
[1734950426682,0.6821571,184.76,184.75,162.215874]
[1734950426878,0.6821571,184.76,184.75,174.91845482]
[1734950427078,6.6344,184.89,184.81,0.12549]
[1734950427299,6.6344,184.89,184.84,12.70258082]
[1734950427482,6.6344,184.89,184.85,0.81111843]
[1734950429007,6.8199571,184.95,184.85,0.81111843]
[1734950432086,6.8199571,184.95,184.85,150.21369925]
[1734950432284,6.8199571,184.95,184.86,149.40258082]
[1734950432490,6.8199571,184.95,184.87,13.5135163]
[1734950434196,0.6821571,184.95,184.94,0.12549]
[1734950434505,6.5203,185.04,184.97,20.0]
[1734950434707,6.5203,185.04,184.98,0.81055605]
[1734950435179,6.5203,185.04,184.99,20.0]
[1734950435375,6.5203,185.04,184.94,1.6092]
[1734950435599,6.5203,185.04,184.95,0.81067322]
[1734950435928,6.2974,185.12,184.95,0.81067322]
[1734950436116,20.0,185.09,184.95,0.81067322]
[1734950436329,1.01328754,185.08,184.95,0.81067322]
[1734950437215,23.776884,185.07,184.95,0.81067322]
[1734950437625,23.776884,185.07,184.96,12.70258082]
[1734950437913,23.776884,185.08,184.97,13.51320561]
[1734950438091,24.79006713,185.08,184.97,0.81062479]
[1734950438721,24.79006713,185.08,184.96,0.81063086]
[1734950439324,23.776884,185.08,184.97,12.70258082]
[1734950439484,23.776884,185.08,184.98,0.81050772]
[1734950439826,20.0,185.09,184.98,13.51308854]
[1734950441193,23.776884,185.08,184.98,13.51308854]
[1734950442405,24.79004822,185.08,184.98,13.51308854]
[1734950442629,23.776884,185.08,184.98,13.51308854]
[1734950444030,23.776884,185.08,184.99,12.70258082]
[1734950444193,23.776884,185.08,185.0,0.81054181]
[1734950444821,24.79006247,185.08,185.0,0.81054181]
[1734950445229,24.79006247,185.08,184.99,0.81054388]
[1734950445399,24.79006247,185.08,184.99,13.5131247]
[1734950445601,6.2974,185.12,185.01,12.70258082]
[1734950445819,6.2974,185.12,185.03,12.70258082]
[1734950446532,6.2974,185.12,185.04,13.51288023]
[1734950446714,0.6821571,185.13,185.06,12.70258082]
[1734950446896,0.6821571,185.13,185.05,1.5994]
[1734950446897,0.6821571,185.13,185.07,13.51273826]
[1734950447097,0.6821571,185.13,185.08,12.70258082]
[1734950447298,0.6821571,185.13,185.1,12.70258082]
[1734950447542,0.6821571,185.13,185.11,12.70258082]
[1734950447714,0.6821571,185.13,185.1,12.70258082]
[1734950449501,0.6821571,185.13,185.12,12.70258082]
[1734950449936,31.43909159,185.28,185.19,12.70258082]
[1734950450106,0.6821571,185.31,185.2,12.70258082]
[1734950450432,1.69420751,185.31,185.2,12.70258082]
[1734950450596,1.69420751,185.31,185.13,12.70258082]
[1734950450797,1.69420751,185.31,185.12,34.28438082]
[1734950451002,1.69420751,185.31,185.12,21.5818]
[1734950451233,1.69420751,185.31,185.14,20.0]
[1734950451441,20.0,185.29,185.12,21.5818]
[1734950451599,23.776884,185.23,185.07,12.70258082]
[1734950451927,23.776884,185.19,185.08,0.81018315]
[1734950452903,23.776884,185.19,185.09,12.70258082]
[1734950453103,23.776884,185.23,185.12,12.70258082]
[1734950453408,24.7892519,185.23,185.12,20.0]
[1734950453609,24.7892519,185.23,185.11,12.70258082]
[1734950454028,24.7892519,185.23,185.12,32.70258082]
[1734950454526,24.7892519,185.23,185.13,12.70258082]
[1734950454922,24.7892519,185.23,185.12,32.70258082]
[1734950457135,23.776884,185.23,185.12,32.70258082]
[1734950457343,24.78921529,185.23,185.12,32.70258082]
[1734950457735,24.78921529,185.23,185.13,12.70258082]
[1734950458031,20.0,185.2,185.1,0.80989063]
[1734950458214,6.3472,185.18,185.04,6.1016]
[1734950458414,23.776884,185.17,185.04,18.80418082]
[1734950458627,1.01276417,185.16,185.04,12.70258082]
[1734950458921,1.01276417,185.16,185.01,0.81020665]
[1734950459133,1.01276417,185.16,185.05,12.70258082]
[1734950459522,24.78963087,185.17,185.05,12.70258082]
[1734950459829,24.78963087,185.17,185.01,0.81020665]
[1734950459830,23.776884,185.17,185.08,12.70258082]
[1734950460130,6.3472,185.18,185.09,0.81010376]
[1734950460432,1.0126802,185.17,185.07,12.70258082]
[1734950460635,6.3472,185.18,185.1,12.70258082]
[1734950460822,6.3472,185.18,185.11,0.80998493]
[1734950461214,6.3472,185.18,185.09,12.70258082]
[1734950463245,6.3472,185.18,185.07,13.51261237]
[1734950463425,6.3472,185.18,185.1,20.0]
[1734950464439,6.3472,185.18,185.09,12.70258082]
[1734950467311,20.0,185.22,185.09,12.70258082]
[1734950467510,24.78948307,185.21,185.09,12.70258082]
[1734950467941,6.6174,185.25,185.14,32.70258082]
[1734950468154,6.6174,185.25,185.17,12.70258082]
[1734950468350,6.6174,185.25,185.18,0.80972032]
[1734950468640,7.62999888,185.3,185.16,14.30228082]
[1734950468844,7.62999888,185.3,185.16,12.70258082]
[1734950469028,7.62999888,185.3,185.16,13.51230095]
[1734950469532,20.0,185.27,185.16,13.51230095]
[1734950469744,1.01220242,185.26,185.16,13.51230095]
[1734950471043,23.776884,185.25,185.17,20.0]
[1734950471231,1.012337,185.24,185.17,20.0]
[1734950471449,23.776884,185.25,185.17,20.0]
[1734950471653,1.01234647,185.24,185.15,0.80987717]
[1734950471850,23.776884,185.23,185.14,20.0]
[1734950472036,7.1273508,185.22,185.14,20.0]
[1734950472962,7.1273508,185.22,185.12,32.70258082]
[1734950473126,7.1273508,185.22,185.12,12.70258082]
[1734950473332,23.776884,185.21,185.1,13.51245297]
[1734950473640,23.776884,185.21,185.11,12.70258082]
[1734950473843,6.1149,185.22,185.08,1.5196]
[1734950473844,6.1149,185.22,185.12,13.51253164]
[1734950474040,6.1149,185.22,185.13,12.70258082]
[1734950474252,6.1149,185.22,185.14,13.51248531]
[1734950474678,6.1149,185.22,185.14,0.80990449]
[1734950474833,6.1149,185.22,185.17,12.70258082]
[1734950475347,6.6197,185.26,185.18,12.70258082]
[1734950475848,6.6197,185.26,185.19,13.51225252]
[1734950476458,6.6197,185.3,185.19,13.51225252]
[1734950476661,7.63165917,185.3,185.19,12.70258082]
[1734950477038,7.63165917,185.3,185.18,33.51214816]
[1734950477242,7.63165917,185.3,185.18,13.51214816]
[1734950478061,6.6197,185.3,185.19,12.70258082]
[1734950478271,6.6197,185.3,185.2,13.51213712]
[1734950478637,6.6197,185.3,185.22,12.70258082]
[1734950478838,6.6197,185.3,185.23,0.80940888]
[1734950479153,1.5263,185.32,185.23,13.5119897]
[1734950479362,6.4657,185.35,185.23,13.5119897]
[1734950479363,6.4657,185.35,185.25,12.70258082]
[1734950479570,6.4657,185.35,185.26,13.51185198]
[1734950480842,6.4657,185.35,185.27,12.70258082]
[1734950481034,6.4657,185.35,185.28,0.80920616]
[1734950481238,6.4657,185.35,185.28,13.51178698]
[1734950481470,6.4657,185.35,185.3,20.0]
[1734950481763,6.4657,185.35,185.3,20.80914955]
[1734950482442,6.4657,185.35,185.3,0.80914955]
[1734950483170,6.4657,185.35,185.3,20.80914955]
[1734950487173,6.4657,185.35,185.26,34.34208082]
[1734950488368,6.4657,185.35,185.26,35.1513285]
[1734950489373,6.4657,185.35,185.27,12.70258082]
[1734950489876,6.4657,185.35,185.28,13.51182478]
[1734950490280,6.4657,185.35,185.29,12.70258082]
[1734950491282,6.4657,185.35,185.29,0.8091688]
[1734950491767,6.4657,185.35,185.3,20.0]
[1734950492169,6.4657,185.35,185.29,0.8091688]
[1734950492604,6.4657,185.35,185.3,20.0]
[1734950493200,6.4657,185.35,185.29,0.8091688]
[1734950495092,6.4657,185.35,185.3,20.0]
[1734950496102,6.3549,185.4,185.3,20.0]
[1734950496680,6.3549,185.4,185.3,12.70258082]
[1734950501298,6.3549,185.4,185.3,12.82807082]
[1734950501504,8.176,185.45,185.34,20.0]
[1734950501800,1.01128855,185.44,185.35,0.80903084]
[1734950502200,8.176,185.45,185.35,0.80903084]
[1734950502394,8.176,185.45,185.35,13.51161166]
[1734950502694,8.176,185.45,185.35,0.80903084]
[1734950502893,8.176,185.45,185.35,13.51161166]
[1734950503100,8.176,185.45,185.36,12.70258082]
[1734950503301,8.176,185.45,185.37,0.80886533]
[1734950504812,1.01106915,185.44,185.34,0.80885532]
[1734950504994,1.01120301,185.44,185.34,0.80885532]
[1734950505491,20.0,185.42,185.34,0.80885532]
[1734950506088,20.0,185.42,185.34,13.51143614]
[1734950506482,23.776884,185.44,185.34,13.51143614]
[1734950507393,6.5671,185.45,185.36,12.70258082]
[1734950507605,1.01109518,185.48,185.37,0.80887614]
[1734950507808,2.64051938,185.49,185.37,13.51145696]
[1734950507984,2.64051938,185.49,185.38,12.70258082]
[1734950508185,2.64051938,185.49,185.39,0.80876361]
[1734950508782,23.776884,185.48,185.39,0.80876361]
[1734950509188,1.6295,185.49,185.39,0.80876361]
[1734950510001,6.6935571,185.5,185.39,0.80876361]
[1734950510210,1.01096052,185.49,185.39,0.80876361]
[1734950510371,23.776884,185.49,185.39,0.80876361]
[1734950511013,20.0,185.46,185.39,0.80876361]
[1734950511199,23.776884,185.43,185.26,15.03977544]
[1734950511408,23.776884,185.39,185.26,1.5281]
[1734950511608,23.776884,185.37,185.26,1.5281]
[1734950511910,6.1418,185.34,185.21,14.23068082]
[1734950512101,23.776884,185.33,185.22,0.80944099]
[1734950512479,23.776884,185.33,185.21,14.23068082]
[1734950512480,24.78870586,185.33,185.21,14.23068082]
[1734950512798,24.78870586,185.33,185.21,1.5281]
[1734950513006,20.0,185.3,185.17,1.5281]
[1734950513299,24.78905307,185.29,185.17,1.5281]
[1734950513517,24.78905307,185.29,185.17,14.23068082]
[1734950513695,23.776884,185.29,185.17,14.23068082]
[1734950514389,23.776884,185.29,185.18,0.80962513]
[1734950514587,20.0,185.31,185.19,12.70258082]
[1734950514899,24.7887978,185.33,185.21,12.70258082]
[1734950515496,23.776884,185.33,185.22,0.80955628]
[1734950515895,6.1418,185.34,185.22,13.5121371]
[1734950518400,24.78868593,185.33,185.24,20.0]
[1734950519208,24.78868593,185.33,185.2,13.51209272]
[1734950519407,24.78868593,185.33,185.18,12.70258082]
[1734950519699,24.78868593,185.33,185.21,20.0]
[1734950521106,24.78868593,185.33,185.18,13.51211509]
[1734950521107,24.78868593,185.33,185.2,20.0]
[1734950521406,24.78868593,185.33,185.2,20.80960213]
[1734950523903,24.78868593,185.33,185.22,12.70258082]
[1734950524079,24.78868593,185.33,185.22,13.51207706]
[1734950524585,24.78868593,185.33,185.23,12.70258082]
[1734950524898,6.1418,185.34,185.24,13.51203151]
[1734950525101,6.1418,185.34,185.24,0.80945069]
[1734950526000,6.1418,185.34,185.2,156.7]
[1734950526001,1.01172386,185.33,185.22,20.0]
[1734950526217,23.776884,185.32,185.22,20.0]
[1734950526501,23.776884,185.3,185.22,20.0]
[1734950526913,1.01196851,185.33,185.22,32.70258082]
[1734950527092,6.1418,185.34,185.23,13.51215563]
[1734950527287,6.1418,185.34,185.25,12.70258082]
[1734950527596,6.1418,185.34,185.26,0.80931274]
[1734950531709,1.01178898,185.37,185.26,0.80931274]
[1734950531710,6.4139,185.39,185.29,12.70258082]
[1734950531910,6.4139,185.39,185.3,0.80915851]
[1734950534414,23.776884,185.38,185.3,0.80915851]
[1734950534598,24.78831643,185.38,185.27,0.80928566]
[1734950535113,24.78831643,185.38,185.27,13.51186648]
[1734950536220,23.776884,185.38,185.27,13.51186648]
[1734950536717,6.4139,185.39,185.28,12.70258082]
[1734950536893,6.4139,185.39,185.29,13.51173728]
[1734950537100,2.53775969,185.43,185.3,12.70258082]
[1734950537405,18.24968855,185.44,185.33,12.82807082]
[1734950537726,17.23840205,185.44,185.35,14.26188082]
[1734950537903,17.23840205,185.44,185.36,0.80889173]
[1734950538106,11.14030205,185.44,185.36,0.80889173]
[1734950539227,1.01110697,185.47,185.36,13.51147255]
[1734950540406,6.1868,185.48,185.38,12.70258082]
[1734950540606,20.0,185.48,185.39,0.80872274]
[1734950542139,24.78777684,185.47,185.37,20.0]
[1734950542421,24.78777684,185.47,185.36,0.80889107]
[1734950543220,24.78777684,185.47,185.37,20.0]
[1734950544136,20.0,185.44,185.36,0.80889107]
[1734950544511,24.78777684,185.47,185.36,0.80889107]
[1734950545831,20.0,185.48,185.36,13.51147189]
[1734950546139,1.01096325,185.47,185.36,13.51147189]
[1734950546335,20.0,185.48,185.36,13.51147189]
[1734950547134,20.0,185.48,185.38,20.0]
[1734950547633,20.0,185.48,185.39,0.80881234]
[1734950548312,24.78789014,185.47,185.36,0.80880491]
[1734950552722,20.0,185.48,185.37,12.82807082]
[1734950552916,20.0,185.48,185.38,0.80871651]
[1734950554234,20.0,185.48,185.39,0.12549]
[1734950554427,0.6821571,185.5,185.41,12.82807082]
[1734950554631,0.6821571,185.5,185.42,2.40116441]
[1734950554937,0.6821571,185.5,185.42,15.10374523]
[1734950556057,0.6821571,185.5,185.42,2.40116441]
[1734950556737,0.6821571,185.5,185.42,1.5926]
[1734950557441,0.6821571,185.5,185.43,0.80865097]
[1734950558535,0.6821571,185.5,185.44,12.70258082]
[1734950558740,0.6821571,185.5,185.45,0.80845765]
[1734950558944,0.6821571,185.5,185.45,13.51103847]
[1734950559745,0.6821571,185.5,185.45,0.80845765]
[1734950559942,8.20918722,185.63,185.53,0.12549]
[1734950560257,8.20918722,185.63,185.56,12.70258082]
[1734950560448,36.88661076,185.66,185.58,20.0]
[1734950560449,24.62756166,185.65,185.58,20.0]
[1734950560620,1.01002756,185.64,185.5,15.01100287]
[1734950560820,1.01002756,185.64,185.52,20.0]
[1734950561222,1.01002756,185.64,185.52,20.80824597]
[1734950561744,23.776884,185.63,185.52,20.80824597]
[1734950561952,23.776884,185.63,185.52,13.51082679]
[1734950562540,20.0,185.67,185.52,13.51082679]
[1734950562745,1.01014112,185.66,185.53,12.70258082]
[1734950562944,1.01014112,185.66,185.53,13.51069641]
[1734950563149,1.01014112,185.66,185.53,0.80811559]
[1734950563524,1.01014112,185.66,185.54,12.70258082]
[1734950563842,20.0,185.67,185.57,12.70258082]
[1734950564142,20.0,185.67,185.56,12.70258082]
[1734950564320,20.0,185.67,185.57,13.51054427]
[1734950564642,20.0,185.67,185.57,0.80796345]
[1734950564940,20.0,185.67,185.56,12.70258082]
[1734950565350,20.0,185.67,185.57,0.80799127]
[1734950565645,20.0,185.67,185.56,12.70258082]
[1734950566230,23.776884,185.65,185.53,20.0]
[1734950566538,1.01021269,185.64,185.52,12.70258082]
[1734950566722,1.01021269,185.64,185.53,0.80814577]
[1734950567019,1.01021269,185.64,185.53,13.51072659]
[1734950567342,1.01021269,185.64,185.54,12.70258082]
[1734950567548,1.01007755,185.63,185.55,0.80815827]
[1734950567742,1.01007755,185.63,185.53,13.51064286]
[1734950567952,1.01007755,185.63,185.53,0.80806204]
[1734950568565,1.01020267,185.65,185.54,12.70258082]
[1734950568848,1.01020267,185.65,185.55,0.80805958]
[1734950569050,1.01007909,185.66,185.55,13.5106404]
[1734950569546,23.776884,185.66,185.56,12.70258082]
[1734950569846,23.776884,185.66,185.57,0.80801105]
[1734950570248,1.01005615,185.65,185.54,12.70258082]
[1734950570430,24.78697785,185.66,185.55,13.5106559]
[1734950571334,24.78697785,185.66,185.56,12.70258082]
[1734950571537,24.78697785,185.66,185.56,13.51064165]
[1734950571842,24.78697785,185.66,185.56,0.80806083]
[1734950572345,24.78697785,185.66,185.56,13.51064165]
[1734950573451,20.0,185.67,185.56,13.51064165]
[1734950573660,1.0100734,185.66,185.56,13.51064165]
[1734950574440,20.0,185.67,185.56,13.51064165]
[1734950576049,20.0,185.67,185.56,0.80806083]
[1734950576050,23.776884,185.66,185.56,0.80806083]
[1734950576252,1.00999885,185.65,185.56,0.80806083]
[1734950577160,1.01007665,185.66,185.56,0.80806083]
[1734950578142,1.01007665,185.66,185.55,13.51064992]
[1734950578763,1.01007665,185.66,185.56,12.70258082]
[1734950579061,1.01007665,185.66,185.57,0.80804484]
[1734950581367,1.01007665,185.66,185.54,12.70258082]
[1734950581665,1.01007665,185.66,185.55,12.70258082]
[1734950582785,1.01004607,185.66,185.56,13.51068266]
[1734950583688,1.01004607,185.66,185.56,0.80810184]
[1734950583866,1.01004607,185.66,185.55,12.70258082]